{"text_format":"1","workbook":"xlsx","n_sheets":17,"sheets":["1-TITLE","2- INDEX","3-TYP. SEC. ","4-NOTES (1)","5-NOTES (2)","6-NOTES (3)","7- MT NOTES","8- MT NOTES","9-GEN SUM","10-ADA","11-BRO","12-LAW","13-PIK","14-ROS","15-NO SPRAY","16-GUARDRAIL AND SIGN POST ","17-CURB AND CONCRETE BARRIER"],"not_rendered":{"charts":0,"images":22,"macros":1,"external_links":0,"defined_names":16,"comments":1,"pivot_tables":0},"unopened":[],"bounds":{"document_bytes":16777216,"sheet_cells":100000,"rows_first":2000,"rows_last":500,"rows_between":2000,"halvings":0,"cell_chars":16384,"cell_head_chars":4096},"cells_cut":0,"cells_raw":0,"read":"whole","date_system":"1900"}

{"sheet":"1-TITLE","index":0,"n_rows":51,"n_cols":31,"rows_kept":51,"cut":false,"hidden":false,"merged":[[54,2,55,7],[54,0,55,1],[55,9,55,11],[55,12,55,14],[55,15,55,17],[49,9,49,11],[56,2,57,7],[56,0,57,1],[50,24,50,26],[51,15,51,17],[51,18,51,20],[50,15,50,17],[50,18,50,20],[55,24,55,26],[51,21,51,23],[51,24,51,26],[52,24,52,26],[53,24,53,26],[53,21,53,23],[52,21,52,23],[55,21,55,23],[46,0,53,7],[48,9,48,11],[53,9,53,11],[43,27,44,32],[43,9,44,26],[39,0,40,14],[34,0,38,14],[31,0,33,14],[30,0,30,14],[40,16,40,19],[43,0,44,7],[42,0,42,7],[4,16,4,22],[7,23,7,32],[5,23,6,32],[8,23,9,32],[8,16,9,22],[7,16,7,22],[5,16,6,22],[35,16,35,19],[18,17,22,32],[10,17,16,32],[22,0,22,13],[21,0,21,13],[20,0,20,13],[27,0,27,7],[27,8,27,15],[46,18,46,20],[48,15,48,17],[48,18,48,20],[49,15,49,17],[45,9,45,11],[45,12,45,14],[45,15,45,17],[25,0,25,9],[45,0,45,7],[48,12,48,14],[51,9,51,11],[52,9,52,11],[50,9,50,11],[47,9,47,11],[32,16,32,19],[37,16,37,19],[46,12,46,14],[49,12,49,14],[0,16,3,32],[45,18,45,20],[24,14,24,15],[23,14,23,15],[22,14,22,15],[21,14,21,15],[24,17,30,32],[40,20,40,26],[45,30,45,32],[45,21,45,23],[45,24,45,26],[45,27,45,29],[25,10,25,15],[20,14,20,15],[24,0,24,13],[23,0,23,13],[18,0,18,7],[4,23,4,32],[33,20,33,32],[38,20,38,32],[32,20,32,32],[37,20,37,32],[35,20,35,26],[18,8,18,15],[49,18,49,20],[48,24,48,26],[46,21,46,23],[46,24,46,26],[47,21,47,23],[47,24,47,26],[46,27,46,29],[49,27,49,29],[48,21,48,23],[48,27,48,29],[49,21,49,23],[49,24,49,26],[46,9,46,11],[50,21,50,23],[56,15,56,17],[56,18,56,20],[54,21,54,23],[55,18,55,20],[57,27,57,29],[57,30,57,32],[54,27,54,29],[57,21,57,23],[54,30,54,32],[56,27,56,29],[57,24,57,26],[56,30,56,32],[55,27,55,29],[55,30,55,32],[54,24,54,26],[56,21,56,23],[56,24,56,26],[50,27,51,32],[52,27,52,29],[52,30,52,32],[46,30,46,32],[47,27,47,29],[53,27,53,29],[53,30,53,32],[57,9,57,11],[54,9,54,11],[56,9,56,11],[57,12,57,14],[56,12,56,14],[47,12,47,14],[47,15,47,17],[47,18,47,20],[54,12,54,14],[52,12,52,14],[53,12,53,14],[57,15,57,17],[57,18,57,20],[53,18,53,20],[54,15,54,17],[54,18,54,20],[52,15,52,17],[52,18,52,20],[53,15,53,17],[47,30,47,32],[48,30,48,32],[49,30,49,32]]}
[null,null,null,null,null,null,null,null,null,null,null,null,null,null,null,null,"D09-HS-FY2025"]
[]
[]
[]
[null,null,null,null,null,null,null,null,null,null,null,null,null,null,null,null,"PID No.",null,null,null,null,null,null,"FEDERAL PROJECT No."]
[null,null,null,null,null,null,null,null,null,null,null,null,null,null,null,null,117086,null,null,null,null,null,null,"100% STATE"]
[]
[null,null,null,null,null,null,null,null,null,null,null,null,null,null,null,null,"STATE JOB No.",null,null,null,null,null,null,"CONSTRUCTION PROJECT No."]
[null,null,null,null,null,null,null,null,null,null,null,null,null,null,null,null,496027]
[]
[null,null,null,null,null,null,null,null,null,null,null,null,null,null,null,null,null,"PROJECT DESCRIPTION\nCONDUCT HERBICIDAL SPRAYING ALONG U.S. AND STATE ROUTES IN ADAMS, BROWN, LAWRENCE, PIKE AND ROSS COUNTIES OF DISTRICT 9."]
[]
[]
[]
[]
[]
[]
[]
["LATITUDE: 39°19'28\"N",null,null,null,null,null,null,null,"LONGITUDE: 82°57'47\"W",null,null,null,null,null,null,null,null,"2023 SPECIFICATIONS\nTHE STANDARD SPECIFICATIONS OF THE STATE OF OHIO, DEPARTMENT OF TRANSPORTATION, INCLUDING CHANGES AND SUPPLEMENTAL SPECIFICATIONS LISTED IN THE PROPOSAL SHALL GOVERN THIS IMPROVEMENT."]
[]
["EARTH DISTURBED AREA:",null,null,null,null,null,null,null,null,null,null,null,null,null,"N/A*"]
["PROJECT EARTH DISTURBED AREA:",null,null,null,null,null,null,null,null,null,null,null,null,null,"N/A*"]
["EST. CONTRACTOR EARTH DISTURBED AREA:",null,null,null,null,null,null,null,null,null,null,null,null,null,"N/A*"]
["NOTICE OF INTENT EARTH DISTURBED AREA:",null,null,null,null,null,null,null,null,null,null,null,null,null,"N/A*"]
["RAILROAD INVOLVEMENT:",null,null,null,null,null,null,null,null,null,null,null,null,null,"NONE",null,null,"I HEREBY APPROVE THESE PLANS AND DECLARE THAT THE MAKING OF THIS IMPROVEMENT WILL NOT REQUIRE THE CLOSING OF THE HIGHWAY TO TRAFFIC AND THAT PROVISIONS FOR THE MAINTENANCE AND SAFETY OF TRAFFIC WILL BE AS SET FORTH IN THESE PLANS AND ESTIMATES."]
["*TYPE OF PROJECT:",null,null,null,null,null,null,null,null,null,"MAINTENANCE"]
[]
["DESIGN EXCEPTION:",null,null,null,null,null,null,null,"NONE"]
[]
[]
["UNDERGROUND UTILITIES"]
["CONTACT BOTH SERVICES\nCALL TWO WORKING DAYS\nBEFORE YOU DIG"]
[null,null,null,null,null,null,null,null,null,null,null,null,null,null,null,null,"APPROVED:"]
[null,null,null,null,null,null,null,null,null,null,null,null,null,null,null,null,null,null,null,null,"DISTRICT DEPUTY DIRECTOR"]
["CALL\n1-800-362-2764\n(TOLL FREE)\nOHIO UTILITIES PROTECTION SERVICE\nNON-MEMBERS MUST BE CALLED DIRECTLY"]
[null,null,null,null,null,null,null,null,null,null,null,null,null,null,null,null,"DATE:"]
[]
[null,null,null,null,null,null,null,null,null,null,null,null,null,null,null,null,"APPROVED:"]
[null,null,null,null,null,null,null,null,null,null,null,null,null,null,null,null,null,null,null,null,"DIRECTOR, DEPARTMENT OF TRANSPORTATION"]
["OIL & GAS PRODUCERS UNDERGROUND\nPROTECTION SERVICE CALL: 1-800-925-0988"]
[null,null,null,null,null,null,null,null,null,null,null,null,null,null,null,null,"DATE:"]
[]
["PLANS PREPARED BY:"]
["ODOT-D09 ENGINEERING",null,null,null,null,null,null,null,null,"STANDARD CONSTRUCTION DRAWINGS",null,null,null,null,null,null,null,null,null,null,null,null,null,null,null,null,null,"SUPPLEMENTAL\nSPECIFICATIONS"]
[]
["ENGINEER SEAL",null,null,null,null,null,null,null,null,"MT-95.30",null,null,"2019-07-19",null,null,"TC-41.20",null,null,"2013-10-18",null,null,null,null,null,null,null,null,800,null,null,"2024-01-19"]
[null,null,null,null,null,null,null,null,null,"MT-95.31",null,null,"2019-07-19",null,null,"TC-52.10",null,null,"2013-10-18",null,null,null,null,null,null,null,null,832,null,null,"2023-07-21"]
[null,null,null,null,null,null,null,null,null,"MT 95.32",null,null,"2019-04-19",null,null,"TC-52.20",null,null,"2021-01-15"]
[null,null,null,null,null,null,null,null,null,"MT-97.10",null,null,"2019-04-19"]
[null,null,null,null,null,null,null,null,null,"MT-105.10",null,null,"2020-01-17"]
[null,null,null,null,null,null,null,null,null,null,null,null,null,null,null,null,null,null,null,null,null,null,null,null,null,null,null,"SPECIAL\nPROVISIONS"]

{"sheet":"2- INDEX","index":1,"n_rows":31,"n_cols":10,"rows_kept":31,"cut":false,"hidden":false,"merged":[[1,2,1,6]]}
[]
[null,null,"INDEX OF SHEETS"]
[]
[]
[null,"TITLE SHEET…………………………………………………………………………………………………………..",null,null,null,null,null,null,null,1]
[]
[null,"INDEX OF SHEETS………………………………………………………………………………………………………",null,null,null,null,null,null,null,2]
[]
[null,"TYPICAL SECTION………………………………………………………………………………………………",null,null,null,null,null,null,null,3]
[]
[null,"GENERAL NOTES…………………………………………………………………………………………………",null,null,null,null,null,null,null,"4-6"]
[]
[null,"MAINTENANCE OF TRAFFIC NOTES……………………………………………...……………………",null,null,null,null,null,null,null,"7-8"]
[]
[null,"GENERAL SUMMARY…………………………………………………………………………………………………",null,null,null,null,null,null,null,9]
[]
[null,"ADAMS SUB-SUMMARY……………………………………………………………………………………………",null,null,null,null,null,null,null,10]
[]
[null,"BROWN SUB-SUMMARY……………………………………………………………………………………………..",null,null,null,null,null,null,null,11]
[]
[null,"LAWRENCE SUB-SUMMARY………………………………………………………………………………………..10",null,null,null,null,null,null,null,12]
[]
[null,"PIKE SUB-SUMMARY…………………………………………………………………………………………………11",null,null,null,null,null,null,null,13]
[]
[null,"ROSS SUB-SUMMARY……………………………………………………………………………………………….12",null,null,null,null,null,null,null,14]
[]
[null,"NO SPRAY AREAS SUMMARY….....................................................................................",null,null,null,null,null,null,null,15]
[]
[null,"GUARDRAIL & SIGNPOST SPRAYING DETAILS………………………………………………………………….14",null,null,null,null,null,null,null,16]
[]
[null,"CURB & CONCRETE BARRIER SPRAYING DETAILS…………………………………………………………….15",null,null,null,null,null,null,null,17]

{"sheet":"3-TYP. SEC. ","index":2,"n_rows":0,"n_cols":0,"rows_kept":0,"cut":false,"hidden":false,"merged":[]}

{"sheet":"4-NOTES (1)","index":3,"n_rows":78,"n_cols":3,"rows_kept":78,"cut":false,"hidden":false,"merged":[[73,2,76,2],[0,0,0,2]]}
["GENERAL NOTES"]
[]
["DESCRIPTION OF WORK",null,"LICENSES REQUIRED"]
[]
["THE WORK SHALL CONSIST OF APPLYING WEED CONTROL MATERIALS",null,"THE CONTRACTOR SHALL BE LICENSED BY THE OHIO"]
["ON HIGHWAY RIGHT-OF-WAY TO CONTROL VEGETATION AROUND",null,"DEPARTMENT OF AGRICULTURE AS A COMMERCIAL"]
["GUARDRAIL, SIGN POSTS, LIGHT POLES AND IN CURBED AREAS.",null,"APPLICATOR. ALL PERSONS INVOLVED IN THE ACTUAL SPRAY"]
[null,null,"APPLICATION SHALL BE LICENSED AS COMMERCIAL"]
["VEGETATION CONTROL SHALL BE PERFORMED BY APPLYING A SWATH",null,"OPERATORS IN THE APPROPRIATE SPRAY CATEGORY."]
["OF 40 INCHES TYPICAL WIDTH, IN FRONT OF, UNDER AND BEHIND THE ",null,"LICENSES SHALL BE SUBMITTED TO THE ENGINEER, PRIOR TO"]
["GUARDRAIL, BARRIER-TYPE GUARDRAIL AND CONCRETE BARRIER ",null,"BEGINNING WORK, FOR VERIFICATION."]
["SHALL BE SPRAYED FROM BOTH SIDES TO GET THE DESIRED WIDTH. "]
["VEGETATION GROWING IN JOINTS BETWEEN CONCRETE BARRIERS",null,"THE NUMBER OF PERSONNEL REQUIRED IN EACH SPRAY VEHICLE"]
["AND CURBS SHALL BE TREATED, SIGN AND DELINEATOR POSTS SHALL",null,"SHALL COMPLY WITH OHIO DEPARTMENT OF AGRICULTURAL"]
["ALSO BE TREATED USING A TYPICAL 36 INCH TREATMENT PATTERN.",null,"REGULATION OAC 901:5-11-02 (B)(13)."]
["APPLICATION DETAILS FOR VEGETATION CONTROL ARE SHOWN ON ",null,"A CDL LICENSED VEHICLE OPERATOR IS REQUIRED WHERE"]
["SHEET 16-17.",null,"APPLICABLE."]
[]
["HERBICIDE SHALL NOT BE APPLIED WHERE AN ODOT \"DO NOT SPRAY\""]
["SIGN IS ERECTED, A SIGN IS POSTED BY A PRIVATE PROPERTY",null,"REPORTING PROGRESS"]
["OWNER OR IN AREAS WHERE TURF IS MAINTAINED AS A LAWN AREA."]
["BACKSLOPE BURIED GUARDRAIL ENDS SHALL NOT BE SPRAYED.",null,"THE CONTRACTOR SHALL SUBMIT A WRITTEN REPORT EACH"]
[null,null,"DAY TO THE ENGINEER OF THE WORK PERFORMED THE"]
["VEHICLES AND EQUIPMENT",null,"PREVIOUS DAY. THE STATE WILL MAKE AVAILABLE AN AGENT "]
[null,null,"DURING NORMAL WORKING HOURS TO DEFINE THE AREAS TO"]
["ALL APPLICATION OPERATIONS SHALL BE PERFORMED FROM",null,"BE TREATED."]
["VEHICLES OPERATED ON THE ROADWAY OR SHOULDER, SUCH"]
["VEHICLES SHALL BE MOTOR VEHICLES LICENSED TO OPERATE ON",null,"107.12 RESPONSIBILITY FOR DAMAGE CLAIMS"]
["OHIO HIGHWAYS AND HAVE EVIDENCE OF AN APPROVED MOTOR"]
["VEHICLE INSPECTION CURRENT WITHIN THE PAST TWO (2) YEARS.",null,"THE CONTRACTOR SHALL, AT THE PRE CONSTRUCTION"]
["NO ON-FOOT APPLICATION SHALL BE PERMITTED. APPLICATION ",null,"CONFERENCE, SUBMIT A FULL DISCLOSURE OF HIS"]
["SHALL BE BY BOOM-MOUNTED OR VEHICLE MOUNTED SPRAY",null,"OPERATIONAL AND ENVIRONMENTAL PLANS AS FOLLOWS:"]
["NOZZLES WITH INSTANTANEOUS SHUT OFF VALVES IMMEDIATELY"]
["ACCESSIBLE TO THE SPRAY OPERATORS FROM HIS OPERATING",null,"1) AN ON-SITE CHEMICAL SPILL WORKER GUIDELINE,"]
["POSITION, TO PROVIDE ONE-PASS APPLICATION. APPLICATION",null,"2) A CONTINGENCY PLAN FOR FIELD OPERATIONS,"]
["VEHICLE OPERATORS SHALL AT ALL TIMES COMPLY WITH APPLICABLE",null,"3) A RESPONSIBLE FOLLOW-UP COMPLAINT PROCEDURE"]
["TRAFFIC LAWS. UNSAFE CONDUCT WILL BE REPORTED TO THE OHIO"]
["HIGHWAY PATROL BY THE ENGINEER.",null,"THE CONTRACTOR SHALL TAKE EVERY PRECAUTION IN HIS"]
[null,null,"OPERATIONS TO AVOID PROPERTY DAMAGE AND ASSUMES ALL"]
["ELECTRONIC SPRAY CONTROLLERS, WHICH ADJUST MATERIAL FLOW",null,"LIABILITY FOR ANY DAMAGE RESULTING FROM HIS ACTIONS,"]
["RATE AS GROUND SPEED CHANGES, SHALL BE USED TO CONTROL",null,"ERRORS OR OMISSIONS AND SHALL HOLD THE STATE OF OHIO"]
["ALL MATERIAL APPLICATION. THE CONTROLLER SHALL DISPLAY,",null,"DEPARTMENT OF TRANSPORTATION HARMLESS. ALL DAMAGE"]
["WHEN SELECTED, THE GROUND SPEED, WIDTH OF APPLICATION,",null,"COMPLAINTS SHALL BE INVESTIGATED PROMPTLY BY THE"]
["RATE OF APPLICATION GALLONS PER ACRE, CUMULATIVE DISTANCE ",null,"CONTRACTOR AT THE DIRECTION OF THE ENGINEER."]
["TRAVELED, CUMULATIVE AREA COVERS AND TOTAL GALLONS OF"]
["MATERIAL APPLIED, SUCH DATA TO BE RECORDED ONLY WHEN",null,"LATERAL LEACHING OF THE SPRAY MATERIAL SHALL NOT"]
["APPLICATOR IS SPRAYING. THE CONTROLLER SHALL BE EASILY",null,"EXCEED 18 INCHES. IF EXCESS LEACHING OCCURS, IT SHALL"]
["CALIBRATED AND CALIBRATION SHALL BE MAINTAINED AND CHECKED",null,"BE REPAIRED BY THE CONTRACTOR AT HIS EXPENSE."]
["DAILY."]
[null,null,"SCHEDULE OF WORK — VEGETATION CONTROL"]
["ALL APPLICATION EQUIPMENT SHALL BE EQUIPPED WITH ANTI-SIPHON"]
["DEVICES OR THE FILLER HOSE SHALL NOT BE PERMITTED TO COME",null,"THE CONTRACTOR SHALL BE RESPONSIBLE FOR DETERMINING "]
["IN CONTACT WITH WATER IN THE SPRAY TANK.",null,"THE APPROPRIATE START DATE TAKING INTO CONSIDERATION"]
[null,null,"ACTUAL WEED GROWTH AND WEATHER CONDITIONS. THE "]
["ALL SPRAY TANKS SHALL HAVE ACCURATE CALIBRATION DEVICES",null,"CONTRACTOR SHALL NOTIFY THE ENGINEER AT LEAST 3 DAYS"]
["AND METHODS OF CALIBRATION. THE CONTRACTOR WILL BE REQUIRED",null,"PRIOR TO BEGINNING WORK. ALL LOCATIONS SHALL HAVE AN "]
["TO MEASURE THE SPRAY TANK CONTENTS AT VARIOUS TIMES",null,"INITIAL APPLICATION COMPLETED WITHIN 60 DAYS FROM THE "]
["AS REQUESTED BY THE ENGINEER. FOR OPERATIONS OCCURING ON A ",null,"START DATE. LIQUIDATED DAMAGES SHALL BE ASSESSED IN"]
["MULTI-LANE HIGHWAY WITH SPEEDS OF 45 MPH OR HIGHER SHALL",null,"ACCORDANCE WITH CMS SECTION 108.07 FOR EACH CALENDAR "]
["REQUIRE A SHADOW VEHICLE WITH A TRUCK-MOUNTED ATTENUATOR",null,"DAY PAST THE INITIAL APPLICATION COMPLETION DATE. ANY "]
["AS SPECIFIED IN CMS 614.03",null,"RE-SPRAY WORK, AS DETERMINED BY THE INITIAL INSPECTION,"]
[null,null,"SHALL BE COMPLETED PRIOR TO THE FINAL COMPLETION DATE"]
["DEMONSTRATION OF APPLICATION METHOD AND EQUIPMENT",null,"OF 7/15/2025."]
[]
["PRIOR TO STARTING WORK, THE CONTRACTOR SHALL DEMONSTRATE,",null,"WORK SHALL BEGIN IN LAWRENCE COUNTY AND PROCEED"]
["TO THE SATISFACTION OF THE ENGINEER, HIS ABILITY TO PERFORM",null,"ACROSS THE COUNTIES IN A NORTHERLY DIRECTION."]
["AND MAINTAIN PROPER APPLICATION METHODS. THIS DEMONSTRATION"]
["SHALL BE CONDUCTED OFF THE ROADWAY AND DEMONSTRATE THE"]
["CONTRACTOR’S METHOD(S) OF APPLICATION FOR ALL TYPES OF"]
["TREATMENT AREAS."]
[]
["THE DEMONSTRATION SHALL BE PERFORMED FOR EACH PIECE OF"]
["APPLICATION EQUIPMENT USED ON THE PROJECT AND INCLUDE"]
["CALIBRATION OF THE ELECTRONIC SPRAY CONTROLLER AND ANY"]
["OTHER MEASURING OR MONITORING DEVICES. IF THE CONTRACTOR "]
["PROPOSES TO ADD ADDITIONAL APPLICATION EQUIPMENT TO THE"]
["PROJECT IN PROGRESS, IT SHALL BE SUCCESSFULLY DEMONSTRATED"]
["BEFORE USE."]

{"sheet":"5-NOTES (2)","index":4,"n_rows":75,"n_cols":4,"rows_kept":75,"cut":false,"hidden":false,"merged":[[0,0,0,2]]}
["GENERAL NOTES"]
[null,null,null,"614 MAINTAINING TRAFFIC"]
["CONDITIONS OF WORK",null,"METHOD OF PAYMENT"]
[null,null,null,"TRAFFIC SHALL BE MAINTAINED IN ACCORDANCE WITH THIS PLAN, 614"]
["NO APPLICATION SHALL BEGIN WITHOUT APPROVAL OF THE",null,"METHOD OF PAYMENT SHALL BE THE NUMBER OF LINEAR MILES","AND THE OMUTCD. THE FLASHING ARROW PANEL, INCLUDING"]
["ENGINEER. NO APPLICATION SHALL OCCUR ON SUNDAYS OR LEGAL",null,"OF GUARDRAIL SPRAYED TIMES THE PERCENT OF KILL ACHIEVED.","CAUTION BAR MODE, SHALL NOT BE USED ON TWO LANE, TWO WAY"]
["HOLIDAYS, UNLESS PRIOR WRITTEN APPROVAL IS OBTAINED FROM",null,"THE COUNTY MANAGERS SHALL REVIEW ALL ROADS WITHIN","ROADWAYS. ALL APPLICATION OPERATIONS SHALL BE PERFORMED "]
["THE ENGINEER, OR IN AREAS MAINTAINED AS A LAWN. IF AN AREA IS ",null,"THEIR COUNTIES TO DETERMINE THE PERCENT KILL ACHIEVED.","USING THE TRAFFIC CONTROL FOR HERBICIDAL SPRAYING"]
["UNTREATED FOR ANY REASON, IT MUST BE REPORTED TO THE",null,"THIS REVIEW SHALL TAKE PLACE BETWEEN 15 TO 21 DAYS","OPERATIONS SHOWN IN SHEET 7. ALL NURSE TRUCKS AND OTHER"]
["ENGINEER. NO APPLICATION SHALL OCCUR WHEN WIND SPEED",null,"AFTER APPLICATION.  ANY GUARDRAIL SECTION ON THE HIGHWAY","PROJECT VEHICLES SHALL BE EQUIPPED, AS A MINIMUM, WITH TWO"]
["EXCEEDS 5 MPH OR WHEN RAIN IS EXPECTED WITHIN THE RAINFAST",null,"THAT DOES NOT PRESENT A 100% KILL ACHIEVED SHALL BE","360 DEGREE YELLOW STROBE FLASHER VISIBLE TO TRAFFIC. TRAFFIC"]
["PERIOD OF THE HERBICIDE. IF RAINFALL OCCURS DURING THE",null,"REVIEWED BY THE HIGHWAY MANAGEMENT ADMINISTRATOR.","CONTROL SHALL BE IN PLACE AND OPERATING AT ALL TIMES WHEN"]
["RAINFAST PERIOD, AS DETERMINED BY THE ENGINEER, THE ",null,null,"A PROJECT VEHICLE OCCUPIES ANY PORTION OF THE ROADWAY"]
["CONTRACTOR SHALL RETREAT AFFECTED AREAS AT HIS EXPENSE.",null,"A 90-100 PERCENT KILL SHALL BE CONSIDERED 100 PERCENT","OR SHOULDER."]
["DO NOT MAKE APPLICATIONS WHEN CIRCUMSTANCES FAVOR",null,"ACHIEVEMENT, 70-90 PERCENT KILL SHALL BE CONSIDERED"]
["MOVEMENT FROM TREATMENT AREAS. DO NOT CONTAMINATE",null,"75 PERCENT ACHIEVEMENT AND LESS THAN 70 PERCENT SHALL"]
["WATER INTENDED FOR IRRIGATION OR DOMESTIC PURPOSES.",null,"BE CONSIDERED 0 PAY FACTOR. COUNTY ACHIEVEMENT SHALL"]
["TO AVOID INJURY TO CROPS OR OTHER DESIRABLE PLANTS, DO NOT",null,"BE THE AVERAGE OF EACH ROUTE, ADDED TOGETHER, "]
["TREAT OR ALLOW SPRAY DRIFT OR RUN-OFF TO FALL ONTO THESE",null,"AVERAGED, AND THAT NUMBER USED AS THE COUNTY'S"]
["AREAS. FOLLOW LABEL INSTRUCTIONS FOR ALL MATERIALS",null,"PERCENT ACHIEVEMENT."]
["APPLIED ON THIS PROJECT."]
[null,null,"PAY FACTOR TABLE"]
["NOTE FOR INFORMATION ONLY: THERE ARE 35,000 MORE OR LESS"]
["SIGNPOSTS, DELINEATORS AND LIGHT POLES TO BE SPRAYED",null,"PERCENT OF KILL ACHIEVED                            PAY FACTOR"]
["AS PER SPRAY DETAILS.",null,"            100%-90%                                                        1"]
[null,null,"            89.9%-70%                                                     0.75"]
["COOPERATION BETWEEN CONTRACTORS: THE CONTRACTOR IS",null,"        LESS THAN 70%                                                  0"]
["REFERRED TO CMS 105.08."]
[null,null,"THE COST FOR SPRAYING ALL SIGN POSTS, DELINEATORS AND"]
["NOTE: COMMUNICATION MUST BE PROVIDED BY THE CONTRACTOR IN",null,"LIGHT POLES SHALL BE INCLUDED IN THE UNIT PRICE BID FOR"]
["ORDER THAT THE ENGINEER MAY CONTACT HIM OR HER ON A ",null,"ITEM SPECIAL - HERBICIDE SPRAYING, GUARDRAIL."]
["REGULAR BASIS. THIS MAY INCLUDE BUT NOT LIMITED TO A CELLULAR"]
["PHONE NUMBER, PAGER OR DAILY REPORTS TO THE ENGINEER’S ",null,"NOTE: THE CONTRACTOR WILL BE REQUIRED TO RE-SPRAY ANY"]
["OFFICE AS TO THE CONTRACTOR’S LOCATION. PROVISIONS",null,"GUARDRAIL SECTION, SIGNPOST, DELINEATOR, OR LIGHT POLE"]
["DESCRIBED ABOVE SHALL BE INCIDENTAL TO THE OPERATION.",null,"THAT IS DETERMINED TO BE A 0 PAY FACTOR. THE CONTRACTOR,"]
[null,null,"AT HIS DISCRETION, UPON NOTIFICATION OF THE DISTRICT"]
["ITEM SPECIAL — HERBICIDAL SPRAYING, GUARDRAIL",null,"CONSTRUCTION ENGINEER, MAY TOUCH-UP THE WORK AREA"]
[null,null,"DURING THE LIFE OF THE PROJECT, PRIOR TO FINAL COMPLETION"]
["A SPRAY MIXTURE, USING WATER AS A CARRIER, SHALL BE USED.",null,"DATE. THE TOUCH-UP HERBICIDE SHALL BE THE SAME "]
["THE HERBICIDES AND RATES OF APPLICATION SHALL BE DETERMINED ",null,"FORMULATION AS ORIGINALLY APPROVED. CONTRACTOR MUST"]
["BY THE CONTRACTOR AS LONG AS THE LABEL RECOMMENDATIONS",null,"FOLLOW HERBICIDE LABEL DIRECTIONS FOR REAPPLICATION."]
["ARE FOLLOWED. THE SPRAY MIXTURE WILL BE COMPOSED OF BOTH"]
["PRE AND POST EMERGENT HERBICIDES THAT WILL CONTROL"]
["VEGETATION FOR ONE GROWING SEASON. NO RESTRICTED HERBICIDE"]
["(AS DEFINED BY O.R.C. 921.01) AND NO HERBICIDE UNDER"]
["INVESTIGATION BY THE EPA SHALL BE USED. THE HERBICIDE SHALL"]
["BE LABELED FOR USE ON RIGHTS-OF-WAY, INDUSTRIAL SITES AND"]
["NON-CROP AREAS. THE HERBICIDE RATE DETERMINED BY THE"]
["CONTRACTOR MUST BE GIVEN TO THE ENGINEER FOR APPROVAL,"]
["PRIOR TO APPLICATION OF THE SPRAY. IF THE MIXTURE IS CHANGED,"]
["NOTICE MUST BE GIVEN TO THE ENGINEER FOR APPROVAL."]
[]
["THE SPRAY MIXTURE SHALL BE APPLIED IN AN EVEN PATTERN"]
["AS SHOWN IN THE SPRAY DETAILS."]
[]
["A NON-IONIC SURFACTANT WITH AN ACTIVE INGREDIENT ABOVE"]
["80% SHALL BE ADDED TO THE SPRAY MIXTURE AT LABEL RATES."]
["A POLYMER SPRAY ADDITIVE DRIFT CONTROL AGENT SHALL"]
["ALSO BE ADDED TO THE MIXTURE AS THE SPRAY TANK IS BEING"]
["FILLED AND BEFORE THE HERBICIDE IS ADDED TO THE TANK."]
[]
["PERSONAL PROTECTIVE EQUIPMENT SHALL BE PROVIDED AND"]
["WORN AS REQUIRED BY THE HERBICIDE LABEL. MSDA SHEETS"]
["FOR THE HERBICIDE BEING SPRAYED, MUST BE IN THE SPRAY"]
["VEHICLE."]
[]
["NO SPRAYING SHALL BE APPLIED TO AREAS WHERE ASPHALT IS"]
["PLACED UNDER THE GUARDRAIL."]
[]
["HERBICIDE APPLICATIONS APPLIED WHERE CHEMICAL CAN MOVE"]
["EASILY OFF TARGET, SUCH AS ALONG CONCRETE CURBING, AND"]
["INTO A WATERWAY MUST BE DONE WITH AN AQUATICALLY"]
["APPROVED SPRAY MIX. AREAS, AS DETERMINED BY THE "]
["ENGINEER, THAT ARE PRONE TO EROSION ARE NOT TO BE "]
["SPRAYED WITH A SOIL STERILANT."]

{"sheet":"6-NOTES (3)","index":5,"n_rows":69,"n_cols":4,"rows_kept":69,"cut":false,"hidden":false,"merged":[[0,0,0,2]]}
["GENERAL NOTES"]
[]
["CONTROL OF PROHIBITED NOXIOUS WEEDS"]
["AND NON-NATIVE INVASIVE PLANTS"]
[]
["100 HOURS FOR CONTROL OF PROHIBITED NOXIOUS WEEDS AND"]
["NON-NATIVE INVASIVE PLANTS (LISTED IN THE TABLES BELOW) ARE"]
["INCLUDED IN THIS PROJECT, AS DIRECTED BY THE ENGINEER. THE"]
["AWARDED VENDOR SHALL: IDENTIFY THE TARGETED PLANTS WITHIN ",null,null," MAINTENANCE  OF TRAFFIC"]
["ODOT RIGHT OF WAY (ASSUME ODOT RIGHT OF WAY TO EXTEND 30"]
["FEET PERPENDICULAR TO THE CENTERLINE OF THE HIGHWAY);"]
["EMPLOY MANUFACTURER’S RECOMMENDED HERBICIDES AND "]
["TECHNIQUES TO CONTROL EACH SPECIES; AND CREATE A LOGSHEET"]
["WHICH INCLUDES THE SPECIES NAME, THE PROCEDURE USED FOR "]
["CONTROL, THE COUNTY-ROUTE-SECTION LOCATION WHERE THE"]
["SPECIES IS FOUND, THE ARRIVAL TIME AT THE SITE AND THE "]
["DEPARTURE TIME FROM THE SITE. THE LOGS SHALL BE SENT TO "]
["DAVE WALTON UPON COMPLETION OF THE PROJECT AT THE "]
["FOLLOWING ODOT FACILITY, 650 EASTERN AVENUE, CHILLICOTHE,"]
["OHIO 45601. "]
[]
["SPRAYING FOR NOXIOUS WEEDS SHALL NOT BEGIN UNTIL AFTER "]
["5/15/2025."]
[]
["METHOD OF PAYMENT SHALL BE THE HOURS SPENT SPRAYING"]
["EACH SITE. TIME SPENT FOR MOBILIZATION AND EQUIPMENT"]
["PREPARATION AND CALIBRATION ARE NOT INCLUDED IN THE"]
["PAYABLE HOURS."]
[]
["100 HOURS CARRIED TO GENERAL SUMMARY"]
[]
["PROHIBITED NOXIOUS WEEDS COMMON NAME"]
[]
["APPLE OF PERU"]
["CANADA THISTLE"]
["CRESSLEAF"]
["GROUNDSEL"]
["GIANT HOGWEED"]
["GRAPEVINES"]
["JOHNSON GRASS"]
["KOCHIA"]
["MARESTAIL"]
["MILE-A-MINUTE WEED"]
["MUSK THISTLE"]
["OXEYE DAISY"]
["PALMER AMARANTH"]
["POISON HEMLOCK"]
["PURPLE LOOSESPTRIFE"]
["RUSSIAN THISTLE"]
["SHATTER CANE"]
["WILD CARROT"]
["WILD MUSTARD"]
["WILD PARSNIP"]
[]
["NON—NATIVE INVASIVE PLANT SPECIES COMMON NAME"]
[]
["AUTUMN-OLIVE"]
["BUCKTHORN, GLOSSY"]
["BUCKTHORN, EUROPEAN OR COMMON"]
["COMMON REED GRASS"]
["GARLIC MUSTARD"]
["HONEYSUCKLE, AMUR"]
["HONEYSUCKLE, JAPANESE"]
["HONEYSUCKLE, MORROW"]
["HONEYSUCKLE, TATARIAN"]
["JAPANESE KNOTWEED"]
["MULTIFLORA ROSE"]
["PURPLE LOOSESTRIFE"]
["REED CANAR GRASS"]

{"sheet":"7- MT NOTES","index":6,"n_rows":65,"n_cols":3,"rows_kept":65,"cut":false,"hidden":false,"merged":[[0,0,0,2]]}
["MAINTENANCE OF TRAFFIC "]
[]
["MAINTENANCE OF TRAFFIC",null,"MAINTENANCE OF TRAFFIC, CON'T"]
["A MINIMUM OF ONE LANE OF TRAFFIC IN EACH DIRECTION ",null,"MAINTAIN TRAFFIC AS FOLLOWS:"]
["SHALL BE MAINTAINED AT  ALL TIMES BY USE OF THE EXISTING ",null,"   1. FOR STATIONARY OPERATIONS:"]
["PAVEMENT.",null,"       a.  IN ACCORDANCE WITH OHIO MANUAL OF UNIFORM      "]
["LENGTH AND DURATION OF THE LANE CLOSURES AND ",null,"            TRAFFIC DEVICES FIGURE 6H-1 FOR WORK BEYOND THE"]
["RESTRICTIONS SHALL BE AT THE APPROVAL OF THE ENGINEER.",null,"           SHOULDERS (TA-1) OR FIGURE 6H-3 FOR WORK ON THE "]
["IT IS THE INTENT TO MINIMIZE THE IMPACT TO THE TRAVELING",null,"           SHOULDER (TA-3) AS APPLICABLE."]
["PUBLIC.  LANE CLOSURES OR RESTRICTIONS OVER SEGMENTS ",null,"                i. ON A TWO-LANE TWO-WAY ROADWAY MAINTAIN "]
["OF THE PROJECT IN WHICH NO WORK IS ANTICIPATED WITHIN",null,"                    TRAFFIC BY FLAGGERS IN ACCORDANCE WITH "]
["A REASONABLE TIME FRAME, AS DETERMINED BY THE ENGINEER, ",null,"                    STANDARD DRAWING MT-97.10, ONLY IF REQUIRED"]
["SHALL NOT BE PERMITTED.  THE LEVEL OF UTILIZATION OF",null,"                   TO PROGRESS WORK."]
["MAINTENANCE OF TRAFFIC DEVICES SHALL BE COMMENSURATE ",null,"                 ii. ON MULTI LANE ROADWAY MAINTAIN TRAFFIC WITH"]
["WITH THE WORK IN PROGRESS.",null,"                      CLOSURES IN ACCORDANCE WITH STANDARD "]
[null,null,"                      DRAWING MT-95.30, MT-95.31, OR MT-95.32 ONLY IF"]
["ALL TRAFFIC CONTROL SIGNS, DEVICES, AND OPERATION",null,"                      REQUIRED TO PROGRESS WORK."]
["USED FOR THE TEMPORARY MAINTENANCE AND CONTROL",null,"    2.  FOR MOVING OPERATIONS:"]
["SHALL AT ALL TIMES BE SUBJECT TO THE DIRECTION AND ",null,"        a.  IN ACCORDANCE WITH THE OHIO MANUAL OF UNIFORM"]
["CONTROL OF THE ENGINEER IN RESPECT TO THEIR CONDITION,",null,"             TRAFFIC DEVICES FIGURE 6H-4 FOR "]
["LOCATIONS, AND TIMES OF APPLICATION.  VISIBLE SIGNS AND ",null,"             SHORT-DURATION OR MOBILE OPERATIONS ON THE "]
["DEVICES SHALL CONSISTENTLY REFLECT THE CONDITIONS ",null,"             SHOULDER (TA-4) OR FIGURE 6H-17 FOR MOBILE"]
["ACTUALLY EXISTING.  INAPPROPRIATE SIGNS AND DEVICES ",null,"             OPERATIONS ON TWO-LANE ROAD (TA-17) OR FIGURE "]
["SHALL BE REMOVED OR COVERED. THE FLASHING ARROW PANEL,",null,"             6H-35 FOR MOBILE OPERATIONS ON MULTILANE ROAD "]
["INCLUDING CAUTION BAR MODE, SHALL NOT BE USED ON TWO",null,"             TA-35 AS APPLICABLE."]
["LANE, TWO-WAY ROADWAYS.",null,"                i.  ALL NURSE TRUCKS AND OTHER PROJECT VEHICLES "]
[null,null,"                   SHALL BE EQUIPPED, AS A MINIMUM, WITH ONE 360 "]
["FOR OPERATIONS OCCURING ON A MULTI-LANE HIGHWAY WITH",null,"                    DEGREE YELLOW STROBE FLASHER VISIBLE TO "]
["SPEEDS OF 45 MPH OR HIGHER, SHADOW VEHICLE(S) SHALL BE",null,"                    TRAFFIC THAT SHALL BE IN PLACE AND OPERATING "]
["REQUIRED WITH A TRUCK-MOUNTED ATTENUATOR AS SPECIFIED",null,"                    AT ALL TIMES WHEN A PROJECT VEHICLE OCCUPIES "]
["IN CMS 614.03.",null,"                    ANY PORTION OF THE ROADWAY OR SHOULDER."]
[null,null,"                ii. THE CONTRACTOR SHALL FURNISH AND MAINTAIN "]
["THE CONTRACTOR SHALL BE RESPONSIBLE FOR FURNISHING,",null,"                    TWO WAY RADIO EQUIPMENT NECESSARY FOR THE "]
["ERECTING OR REPLACING, MAINTAINING, AND REMOVING ALL",null,"                    VOICE COMMUNICATION BETWEEN THE CONTRAC-"]
["TEMPORARY TRAFFIC CONTROL SIGNS AND DEVICES THAT MAY ",null,"                    TOR'S APPLICATION EQUIPMENT AND THE "]
["BE REQUIRED BY THE CMS AND/OR THE OHIO MANUAL FOR ",null,"                    INSPECTOR'S VEHICLE AT ALL TIMES DURING"]
["UNIFORM TRAFFIC CONTROL DEVICES FOR THE MAINTENANCE ",null,"                    OPERATION.  THIS EQUIPMENT SHALL BE "]
["OF THROUGH TRAFFIC.",null,"                    CAPABLE OF TRANSMITTING AND RECEIVING "]
[null,null,"                    NORMAL VOICE COMMUNICATION FOR A  "]
["NO WORK SHALL BE PERFORMED AND ALL EXISTING LANES ",null,"                    DISTANCE OF AT LEAST FOUR MILES,  THIS "]
["SHALL BE OPEN TO TRAFFIC DURING DESIGNATED HOLIDAYS OR ",null,"                    EQUIPMENT SHALL BE INCLUDED IN THE LUMP"]
["EVENTS:",null,"                    SUM PRICE FOR ITEM 614, MAINTAINING TRAFFIC."]
["             MEMORIAL DAY"]
["             JUNETEENTH"]
["             FOURTH OF JULY"]
[]
["THE PERIOD OF TIME THAT THE LANES ARE TO BE OPEN"]
["DEPENDS ON THE DAY OF THE WEEK ON WHICH THE HOLIDAY OR "]
["EVENT  FALLS. THE FOLLOWING SCHEDULE SHALL BE USED TO "]
["DETERMINE THIS PERIOD:"]
[]
["DAY OF THE WEEK   TIME ALL LANES MUST BE OPEN TO TRAFFIC "]
["SUNDAY              12:00 NOON FRIDAY THRU 12:00 NOON MONDAY"]
["MONDAY             12:00 NOON FRIDAY THRU 12:00 NOON TUESDAY"]
["TUESDAY            12:00 NOON MONDAY THRU 12:00 NOON WED."]
["WEDNESDAY       12:00 NOON TUESDAY THRU 12:00 NOON THURS."]
["THURSDAY          12:00 NOON WED. THRU 12:00 NOON FRIDAY"]
["FRIDAY                12:00 NOON THURS. THRU 12:00 NOON MONDAY"]
["SATURDAY          12:00 NOON FRIDAY THRU 12:00 NOON MONDAY"]
[]
["SHOULD THE CONTRACTOR FAIL TO MEET ANY OF THESE "]
["REQUIREMENTS, THE CONTRACTOR SHALL BE ASSESSED A "]
["DISINCENTIVE IN THE AMOUNT OF $50 FOR EACH MINUTE THE "]
["ABOVE DESCRIBED LANE CLOSURE RESTRICTIONS ARE "]
["VIOLATED."]

{"sheet":"8- MT NOTES","index":7,"n_rows":57,"n_cols":1,"rows_kept":57,"cut":false,"hidden":false,"merged":[[0,0,0,2]]}
["MAINTENANCE OF TRAFFIC"]
[]
["NOTIFICATION OF TRAFFIC RESTRICTIONS"]
["THROUGHOUT THE DURATION OF THE PROJECT, THE CONTRACTOR"]
["CONTRACTOR SHALL NOTIFY THE PROJECT ENGINEER IN"]
["WRITING OF ALL TRAFFIC RESTRICTIONS AND UPCOMING"]
["MAINTENANCE  OF TRAFFIC CHANGES.  THE CONTRACTOR "]
["SHALL ENSURE THE WRITTEN NOTIFICATION IS SUBMITTED IN A "]
["TIMELY MANNER TO ALLOW THE PROJECT ENGINEER TO MEET"]
["THE REQUIRED TIME FRAMES SET FORTH IN THE TABLE BELOW TO "]
["INFORM THE SPECIAL HAULING PERMITS SECTION "]
["(HAULING.PERMITS@DOT.OHIO.GOV) AND THE DISTRICT PUBLIC"]
["INFORMATION OFFICE (D09.PIO@DOT.OHIO.GOV).  THIS NOTIFICATION"]
["SHALL BE RECEIVED BY THE PROJECT ENGINEER PRIOR TO THE"]
["PHYSICAL SETUP OF ANY APPLICABLE SIGNS OR MESSAGE "]
["BOARDS."]
[]
["INFORMATION SHOULD INCLUDE, BUT NOT LIMITED TO, ALL"]
["CONSTRUCTION ACTIVITIES THAT IMPACT OR INTERFERE WITH"]
["TRAFFIC AND SHALL LIST THE SPECIFIC LOCATION, TYPE OF WORK,"]
["ROAD STATUS, DATE AND TIME OF RESTRICTION, DURATION OF"]
[" RESTRICTION, NUMBER OF LANES MAINTAINED, NUMBER OF"]
[" LANES CLOSED, MINIMUM VERTICAL CLEARANCE, MINIMUM WIDTH"]
["OF DRIVABLE PAVEMENT, DETOUR ROUTS, IF APPLICABLE, AND"]
[" ANY OTHER INFORMATION REQUESTED BY THE PROJECT"]
[" ENGINEER."]
[]
["NOTIFICATION OF TRAFFIC RESTRICTIONS TIME TABLE"]
[" ITEM                  DURATION OF            NOTICE DUE TO"]
["                             CLOSURE                PERMITS & PIO"]
[]
["RAMP &                 ≥ 2 WEEKS           21 CALENDAR DAYS"]
["ROAD                                                  PRIOR TO CLOSURE"]
["CLOSURES                   "]
["                              > 12 HRS &           14  CALENDAR DAYS                      "]
["                              < 2 WKS                PRIOR TO CLOSURE"]
[]
["                              <12 HRS                4  BUSINESS DAYS                      "]
["                                                           PRIOR TO CLOSURE"]
[]
["LANE                     ≥ 2 WEEKS            14 CALENDAR DAYS"]
["CLOSURES  &                                     PRIOR TO CLOSURE"]
["RESTRICTIONS             "]
["                              < 2 WKS               5  BUSINESS DAYS                      "]
["                                                           PRIOR TO CLOSURE"]
[]
["START OF                N/A                      14 CALENDAR DAYS"]
["CONSTRUCTION                                  PRIOR TO "]
["& TRAFFIC                                           IMPLEMENTATION"]
["PATTERN "]
["CHANGES"]
[]
[]
["ANY UNFORSEEN CONDITIONS NOT SPECIFIED IN THE PLANS"]
["REQUIRING TRAFFIC RESTRICTIONS SHALL ALSO BE "]
["REPORTED TO THE PROJECT ENGINEER USING THE"]
["NOTIFICATION TIME TABLE."]

{"sheet":"9-GEN SUM","index":8,"n_rows":13,"n_cols":17,"rows_kept":13,"cut":false,"hidden":false,"merged":[[0,1,0,16],[1,16,4,16],[3,13,4,13],[1,14,4,14],[1,13,2,13],[1,11,4,11],[22,0,24,0],[1,10,2,10],[3,10,4,10],[1,15,4,15],[1,1,2,9],[3,1,4,1],[3,7,4,7],[3,2,4,2],[3,3,4,3],[3,4,4,4],[3,5,4,5],[3,6,4,6],[3,8,4,8],[3,9,4,9],[1,12,4,12]]}
[null,"GENERAL SUMMARY"]
[null,"SHEET NUMBER",null,null,null,null,null,null,null,null,"PART.","ITEM","ITEM EXT.","GRAND","UNIT","DESCRIPTION","SEE SHEET NO."]
[]
[null,null,6,10,11,12,13,14,null,null,"01/NFA/44",null,null,"TOTAL"]
[]
[]
[null,null,null,null,null,null,null,null,null,null,null,{"$f":"SUM(B7:J7)","v":0},null,null,null,"ITEMS OF WORK"]
[null,null,100,null,null,null,null,null,null,null,100,"SPECIAL",69098600,100,"HOUR","MISC.: CONTROL OF PROHIBITED NOXIOUS WEEDS AND NON-NATIVE INVASIVE SPECIES",6]
[null,null,null,{"$f":"'10-ADA'!F43","v":47},{"$f":"'11-BRO'!F43","v":43},{"$f":"'12-LAW'!F40","v":73},{"$f":"'13-PIK'!F42","v":54},{"$f":"'14-ROS'!F47","v":80},null,null,{"$f":"SUM(B9:I9)","v":297},"SPECIAL",69142000,{"$f":"K9","v":297},"MILE","HERBICIDAL SPRAYING, NON SELECTIVE VEGETATION CONTROL, GUARDRAIL, SIGNS, AND DELINEATORS",5]
[]
[null,null,null,null,null,null,null,null,null,null,null,null,null,null,null,"INCIDENTALS"]
[null,null,null,null,null,null,null,null,null,null,1,614,11000,"LUMP",null,"MAINTAINING TRAFFIC"]
[null,null,null,null,null,null,null,null,null,null,1,624,10000,"LUMP",null,"MOBILIZATION"]

{"sheet":"10-ADA","index":9,"n_rows":43,"n_cols":13,"rows_kept":43,"cut":false,"hidden":false,"merged":[[44,1,44,2],[45,1,45,2],[40,1,40,4],[41,1,41,4],[41,5,41,7],[42,1,42,4],[42,5,42,7],[43,1,43,2],[23,0,24,0],[0,1,1,12],[2,1,7,1],[2,2,7,2],[2,3,5,4],[2,5,5,5],[2,6,5,6],[2,7,5,7],[2,8,5,8],[2,9,5,9],[2,10,5,10],[2,12,7,12],[6,5,7,5],[6,6,7,6],[6,7,7,7],[6,8,7,8]]}
[null,"HERBICIDAL SPRAYING NONSELECTIVE VEGETATION CONTROL DATA FOR ADAMS COUNTY"]
[]
[null,"COUNTY","ROUTE","SLM",null,"GUARD  RAIL SPRAYED","CONCRETE DIVIDER SPRAYED","CURB SPRAYED","TOTAL TREATED",null,null,null,"COMMENTS"]
[]
[]
[]
[null,null,null,"FROM","TO","MILE","MILE","MILE","ACRES"]
[null,null,null,"SLM","SLM"]
[null,"ADA",32,0,24.95,6.64,0.2,null,{"$f":"(H9*5280*42/12)/43560+(F9*5280*40/12)/43560+(G9*5280*2)/43650","v":2.7312131625533689},null,null,null,"BROWN C.L. TO PIKE C.L."]
[null,"ADA ",41,0,10.76,1.2,null,null,0.48484848484848486,null,null,null,"BROWN C.L. TO WEST UNION CORP."]
[null,"ADA",41,13.9,25.51,3.55,null,null,1.4343434343434343,null,null,null,"WEST UNION CORP. TO PEEBLES CORP."]
[null,"ADA",41,26.75,34.46,1.28,null,null,0.51717171717171717,null,null,null,"PEEBLES CORP. TO HIGHLAND C.L."]
[null,"ADA",52,0,6.79,3.34,null,null,1.3494949494949495,null,null,null,"BROWN C.L. TO MANCHESTER CORP."]
[null,"ADA",52,8.27,29.27,10.58,null,null,4.2747474747474747,null,null,null,"MANCHESTER CORP. TO SCIOTO C.L."]
[null,"ADA",73,0,15.58,3.84,null,null,1.5515151515151515,null,null,null,"HIGHLAND C.L. TO SCIOTO C.L."]
[null,"ADA",125,0,8.19,2.0099999999999998,null,null,0.81212121212121213,null,null,null,"BROWN C.L. TO WEST UNION CORP."]
[null,"ADA",125,10.19,26.08,6.33,null,null,2.5575757575757576,null,null,null,"WEST UNION CORP. TO SCIOTO C.L."]
[null,"ADA",136,0.56999999999999995,18.63,1.03,null,null,0.41616161616161623,null,null,null,"MANCHESTER CORP. TO WINCHESTER CORP."]
[null,"ADA",136,20.350000000000001,25.14,0.31,null,null,0.12525252525252525,null,null,null,"WINCHESTER CORP. TO HIGHLAND C.L."]
[null,"ADA",137,0.2,3.56,0.21,null,null,8.4848484848484854E-2,null,null,null,"S.R. 136 TO S.R. 247"]
[null,"ADA",247,0,6.68,0.35,null,null,0.14141414141414138,null,null,null,"OHIO RIVER TO WEST UNION CORP."]
[null,"ADA",247,7.98,16.88,1.9,null,null,0.76767676767676762,null,null,null,"WEST UNION CORP. TO SEAMAN CORP."]
[null,"ADA",247,18.13,23.98,1.02,null,null,0.41212121212121211,null,null,null,"SEAMAN CORP. TO HIGHLAND C.L."]
[null,"ADA",348,0,13.55,1.23,null,null,0.49696969696969695,null,null,null,"BEGIN S.R. 125 TO SCIOTO C.L."]
[null,"ADA",770,0.37,10.52,0.92,null,null,0.37171717171717172,null,null,null,"SEAMAN CORP. TO S.R. 73"]
[null,"ADA",781,0,10.99,0.71,null,null,0.28686868686868688,null,null,null,"BEGIN S.R. 41 TO S.R. 348"]
[]
[]
[]
[]
[]
[]
[]
[]
[]
[]
[]
[]
[]
[]
[null,"TOTALS FOR THIS SHEET",null,null,null,{"$f":"SUM(F9:F32)","v":46.45},{"$f":"SUM(G9:G32)","v":0.2},null,{"$f":"SUM(I9:I32)","v":18.816061647401856}]
[null,"SUB-TOTAL",null,null,null,{"$f":"SUM(F41:H41)","v":46.650000000000006}]
[null,"TOTALS CARRIED TO GENERAL SUMMARY",null,null,null,{"$f":"ROUNDUP(F42,0)","v":47}]

{"sheet":"11-BRO","index":10,"n_rows":43,"n_cols":13,"rows_kept":43,"cut":false,"hidden":false,"merged":[[40,1,40,4],[41,1,41,4],[41,5,41,7],[42,1,42,4],[42,5,42,7],[20,0,22,0],[0,1,1,12],[2,1,7,1],[2,2,7,2],[2,3,5,4],[2,5,5,5],[2,6,5,6],[2,7,5,7],[2,8,5,8],[2,9,5,9],[2,10,5,10],[2,12,7,12],[6,5,7,5],[6,6,7,6],[6,7,7,7],[6,8,7,8]]}
[null,"HERBICIDAL SPRAYING NONSELECTIVE VEGETATION CONTROL DATA FOR BROWN COUNTY"]
[]
[null,"COUNTY","ROUTE","SLM",null,"GUARD  RAIL SPRAYED","CONCRETE DIVIDER SPRAYED","CURB SPRAYED","TOTAL TREATED",null,null,null,"COMMENTS"]
[]
[]
[]
[null,null,null,"FROM","TO","MILE","MILE","MILE","ACRES"]
[null,null,null,"SLM","SLM"]
[null,"BRO",32,0,19.829999999999998,0.3,0.04,null,{"$f":"(H9*5280*42/12)/43560+(F9*5280*40/12)/43560+(G9*5280*2)/43650","v":0.1308890971571384},null,null,null,"CLERMONT C.L. TO ADAMS C.L."]
[null,"BRO",41,0.35,4.4800000000000004,1.57,null,null,0.63434343434343432,null,null,null,"ABERDEEN CORP. TO ADAMS C.L. "]
[null,"BRO",50,0,4.53,1.43,null,null,0.57777777777777772,null,null,null,"BROWN C.L. TO FAYETTEVILLE CORP."]
[null,"BRO",50,5.27,8.3800000000000008,0.6,null,null,0.24242424242424243,null,null,null,"FAYETTEVILLE CORP. TO HIGHLAND C.L."]
[null,"BRO",52,0,4.25,1.83,null,null,0.73939393939393938,null,null,null,"CLERMONT C.L. TO HIGGINSPORT CORP."]
[null,"BRO",52,5.05,11.61,4.08,7.0000000000000007E-2,null,1.6654195563886285,null,null,null,"HIGGINSPORT. TO RIPLEY CORP."]
[null,"BRO",52,14.99,17.420000000000002,1.92,null,null,0.77575757575757576,null,null,null,"RIPLEY CORP. TO ABERDEEN CORP."]
[null,"BRO",52,21.26,23.78,1.72,null,null,0.69494949494949498,null,null,null,"ABERDEEN CORP. TO ADAMS C.L. "]
[null,"BRO",62,8.64,17.68,7.27,0.04,null,2.9470507133187542,null,null,null,"RIPLEY CORP. TO RUSSELVILLE CORP."]
[null,"BRO",62,18.86,30.45,2.74,null,null,1.1070707070707071,null,null,null,"RUSSELVILLE CORP. TO HIGHLAND C.L."]
[null,"BRO",68,11.67,18.91,1.83,null,null,0.73939393939393938,null,null,null,"U.S. 62 TO GEORGETOWN CORP."]
[null,"BRO",68,20.89,27.7,1.44,0.02,null,0.58665666979069042,null,null,null,"GEORGETOWN CORP. TO MT. ORAB CORP."]
[null,"BRO",68,31.46,40.74,1.03,null,null,0.41616161616161623,null,null,null,"MT. ORAB CORP. TO FAYETTEVILLE CORP."]
[null,"BRO",68,41.47,45.88,1.7,null,null,0.68686868686868685,null,null,null,"FAYETTEVILLE CORP. TO CLINTON C.L."]
[null,"BRO",123,0,3.46,0.52,null,null,0.21010101010101009,null,null,null,"BEGIN S.R. 251 TO CLINTON C.L."]
[null,"BRO",125,0,2.54,0.69,null,null,0.27878787878787881,null,null,null,"CLERMONT C.L. TO HAMMERSVILLE CORP."]
[null,"BRO",125,3.87,8.3699999999999992,0.91,0.35,null,0.45235030719566799,null,null,null,"HAMMERSVILLE CORP. TO GEORGETOWN CORP."]
[null,"BRO",125,10.43,15.39,0.63,null,null,0.25454545454545452,null,null,null,"GEORGETOWN CORP. TO RUSSELVILLE CORP."]
[null,"BRO",125,16.170000000000002,22.93,2.25,null,null,0.90909090909090906,null,null,null,"RUSSELVILLE CORP. TO ADAMS C.L."]
[null,"BRO",131,0,7.76,0.68,null,null,0.27474747474747474,null,null,null,"CLERMONT C.L. TO HIGHLAND C.L."]
[null,"BRO",134,0,0.34,0,null,null,0,null,null,null,"S.R. 32 TO HIGHLAND C.L."]
[null,"BRO",221,0.27,7.55,1.44,0.02,null,0.58665666979069042,null,null,null,"HIGGINSPORT CORP. TO GEORGETOWN CORP."]
[null,"BRO",251,0,4.01,0.36,null,null,0.14545454545454545,null,null,null,"BEGIN U.S. 50 TO CLINTON C.L."]
[null,"BRO",286,0,8.31,0.66,null,null,0.26666666666666666,null,null,null,"CLERMONT C.L. TO HIGHLAND C.L."]
[null,"BRO",353,0,4.5999999999999996,0.57999999999999996,null,null,0.2343434343434343,null,null,null,"BEGIN AT U.S. 62 TO S.R. 125"]
[null,"BRO",505,0.24,10.39,1.04,null,null,0.42020202020202019,null,null,null,"HIGGINSPORT CORP. TO S.R. 125"]
[null,"BRO",756,0,1.97,0,null,null,0,null,null,null,"CLERMONT C.L. TO S.R. 505"]
[null,"BRO",763,0,12.7,2.16,null,null,0.87272727272727291,null,null,null,"BEGIN AT S.R. 41 TO S.R. 125"]
[null,"BRO",774,0,3.04,0,null,null,0,null,null,null,"CLERMONT C.L. TO HAMMERSVILLE CORP."]
[null,"BRO",774,3.38,10.92,0.38,null,null,0.15353535353535352,null,null,null,"HIGGINSPORT CORP. TO U.S. 68"]
[]
[]
[null,"TOTALS FOR THIS SHEET",null,null,null,{"$f":"SUM(F9:F40)","v":41.76},{"$f":"SUM(G9:G40)","v":0.54},null,{"$f":"SUM(I9:I40)","v":17.003366447985002}]
[null,"SUB-TOTALS",null,null,null,{"$f":"SUM(F41:H41)","v":42.3}]
[null,"TOTALS CARRIED TO GENERAL SUMMARY",null,null,null,{"$f":"ROUNDUP(F42,0)","v":43}]

{"sheet":"12-LAW","index":11,"n_rows":40,"n_cols":12,"rows_kept":40,"cut":false,"hidden":false,"merged":[[37,1,37,4],[38,1,38,4],[38,5,38,7],[39,1,39,4],[39,5,39,7],[21,0,23,0],[0,1,1,11],[2,1,7,1],[2,2,7,2],[2,3,5,4],[2,5,5,5],[2,6,5,6],[2,7,5,7],[2,8,5,8],[2,9,5,9],[2,10,5,10],[2,11,7,11],[6,5,7,5],[6,6,7,6],[6,7,7,7],[6,8,7,8]]}
[null,"HERBICIDAL SPRAYING NONSELECTIVE VEGETATION CONTROL DATA FOR LAWRENCE COUNTY"]
[]
[null,"COUNTY","ROUTE","SLM",null,"GUARD  RAIL SPRAYED","CONCRETE DIVIDER SPRAYED","CURB SPRAYED","TOTAL TREATED",null,null,"COMMENTS"]
[]
[]
[]
[null,null,null,"FROM","TO","MILE","MILE","MILE","ACRES"]
[null,null,null,"SLM","SLM"]
[null,"LAW",7,0,2.44,2.2999999999999998,0.56000000000000005,null,{"$f":"(H9*5280*42/12)/43560+(F9*5280*40/12)/43560+(G9*5280*2)/43560","v":1.065050505050505},null,null,"22.61 U.S. 52 TO CHESAPEAKE CORP. - INCLUDE RAMPS WITH SR 527"]
[null,"LAW",7,3.41,13.67,5.77,0.03,null,{"$f":"(H10*5280*42/12)/43560+(F10*5280*40/12)/43560+(G10*5280*2)/43560","v":2.3385858585858585},null,null,"CHESAPEAKE CORP. TO ATHALIA CORP."]
[null,"LAW",7,14.81,19.18,2.58,null,null,1.0424242424242425,null,null,"ATHALIA CORP. TO GALLIA C.L."]
[null,"LAW",52,0,22.62,18.91,4.99,null,{"$f":"(H12*5280*42/12)/43560+(F12*5280*40/12)/43560+(G12*5280*2)/43560","v":8.8501010101010102},null,null,"SCIOTO C.L. TO W.V. STATE LINE. - INCLUDES ALL RAMPS AND SHOULDER CONCRETE BARRIER"]
[null,"LAW",93,1.06,28.2,17.149999999999999,null,null,6.9292929292929282,null,null,"IRONTON CORP. TO JACKSON C.L."]
[null,"LAW",140,0,1.7,0.86,null,null,0.34747474747474749,null,null,"SCIOTO C.L. TO JACKSON C.L."]
[null,"LAW",141,0.97,23.01,5.41,null,null,2.1858585858585857,null,null,"IRONTON CORP. TO GALLIA C.L."]
[null,"LAW",217,0,17.47,2.0699999999999998,null,null,0.8363636363636362,null,null,"S.R. 141 TO S.R. 7"]
[null,"LAW",218,0,2.44,0,null,null,0,null,null,"S.R. 217 TO GALLIA C.L."]
[null,"LAW",243,1.55,18.45,2.0499999999999998,null,null,0.82828282828282807,null,null,"COAL GROVE CORP. TO S.R. 7"]
[null,"LAW",373,0,3.39,0.11,null,null,4.4444444444444446E-2,null,null,"S.R. 93 TO S.R. 93"]
[null,"LAW",378,0,9.4600000000000009,0.7,null,null,0.28282828282828276,null,null,"S.R. 243 TO S.R. 141"]
[null,"LAW",522,0,8.2899999999999991,3.03,null,null,1.2242424242424241,null,null,"SCIOTO C.L. TO S.R. 93"]
[null,"LAW",527,0.4,0.56000000000000005,0.57999999999999996,null,null,0.2343434343434343,null,null,"CHESAPEAKE CORP. TO S.R. 7"]
[null,"LAW",650,0.03,9.2799999999999994,2.54,null,null,1.0262626262626262,null,null,"HANGING ROCK CORP. TO S.R. 522"]
[null,"LAW",775,0,23.94,3,null,null,1.2121212121212122,null,null,"S.R. 7 TO GALLIA C.L."]
[null,"LAW",790,0,0.55000000000000004,0.01,null,null,4.0404040404040404E-3,null,null,"S.R. 775 TO GALLIA C.L."]
[]
[]
[]
[]
[]
[]
[]
[]
[]
[]
[]
[]
[null,"TOTALS FOR THIS SHEET",null,null,null,{"$f":"SUM(F9:F32)","v":67.070000000000007},{"$f":"SUM(G9:G32)","v":5.58},{"$f":"SUM(H9:H32)","v":0},{"$f":"SUM(I9:I32)","v":28.451717171717164}]
[null,"SUB-TOTALS",null,null,null,{"$f":"SUM(F38:H38)","v":72.650000000000006}]
[null,"TOTALS CARRIED TO THE GENERAL SUMMARY",null,null,null,{"$f":"ROUNDUP(F39,0)","v":73}]

{"sheet":"13-PIK","index":12,"n_rows":42,"n_cols":13,"rows_kept":42,"cut":false,"hidden":false,"merged":[[39,1,39,4],[40,1,40,4],[40,5,40,7],[41,1,41,4],[41,5,41,7],[24,0,38,0],[0,1,1,12],[2,1,7,1],[2,2,7,2],[2,3,5,4],[2,5,5,5],[2,6,5,6],[2,7,5,7],[2,8,5,8],[2,9,5,9],[2,10,5,10],[2,12,7,12],[6,5,7,5],[6,6,7,6],[6,7,7,7],[6,8,7,8]]}
[null,"HERBICIDAL SPRAYING NONSELECTIVE VEGETATION CONTROL DATA FOR PIKE COUNTY"]
[]
[null,"COUNTY","ROUTE","SLM",null,"GUARDRAIL SPRAYED","CONCRETE DIVIDER SPRAYED","CURB SPRAYED","TOTAL TREATED",null,null,null,"COMMENTS"]
[]
[]
[]
[null,null,null,"FROM","TO","MILE","MILE","MILE","ACRES"]
[null,null,null,"SLM","SLM"]
[null,"PIK",23,0,7.08,4.17,null,null,{"$f":"(H9*5280*40/12)/43560+(F9*5280*40/12)/43560","v":1.6848484848484848},null,null,null,"SCIOTO C.L. TO PIKETON CORP."]
[null,"PIK",23,8.2940000000000005,11.61,5.27,null,null,null,null,null,null,"PIKETON CORP. TO WAVERLY CORP."]
[null,"PIK",23,13.26,16.28,2.33,null,null,0.94141414141414137,null,null,null,"WAVERLY CORP. TO ROSS C.L."]
[null,"PIK",32,0,28.42,8.83,0.23,null,3.5676767676767676,null,null,null,"ADAMS C.L. TO JACKSON C.L."]
[null,"PIK",41,0,5.39,0.56999999999999995,null,null,0.23030303030303031,null,null,null,"HIGHLAND C.L. TO ROSS C.L."]
[null,"PIK",104,0,12.2,14.21,0.08,null,5.7414141414141415,null,null,null,"SCIOTO C.L. TO WAVERLY CORP."]
[null,"PIK",124,0,17.12,4.07,null,null,1.6444444444444448,null,null,null,"HIGHLAND C.L. TO S.R 32"]
[null,"PIK",220,0,7.03,2.93,null,null,1.1838383838383839,null,null,null,"SR 772 TO WAVERLY CORP."]
[null,"PIK",220,8.01,8.14,0.08,null,0.1,7.2727272727272724E-2,null,null,null,"WAVERLY CORP. TO WAVERLY CORP."]
[null,"PIK",220,9.5500000000000007,14,0.99,null,null,0.4,null,null,null,"WAVERLY CORP TO S.R. 32 - SPRAY TOP OF CURB FROM 10.56 TO 10.66"]
[null,"PIK",335,0,6.9,1.25,null,null,0.50505050505050508,null,null,null,"SCIOTO C.L. TO BEAVER CORP."]
[null,"PIK",335,7.9,24.78,4.33,null,null,1.7494949494949494,null,null,null,"BEAVER CORP. TO WAVERLY CORP."]
[null,"PIK",551,0,2.87,0.67,null,null,0.27070707070707073,null,null,null,"BEGIN S.R. 220 TO S.R. 104"]
[null,"PIK",552,0,1.75,0.34,null,null,0.13737373737373737,null,null,null,"BEGIN S.R. 220 TO S.R. 104"]
[null,"PIK",772,0,9.2899999999999991,2.23,null,null,0.90101010101010104,null,null,null,"SCIOTO C.L. TO S.R. 32"]
[null,"PIK",772,13.62,24.02,1.1299999999999999,null,null,0.45656565656565656,null,null,null,"S.R. 124 TO ROSS C.L."]
[null,"PIK",776,0,0.99,0.05,null,null,2.0202020202020204E-2,null,null,null,"SCIOTO C.L. TO JACKSON C.L."]
[]
[]
[]
[]
[]
[]
[]
[]
[]
[]
[]
[]
[]
[]
[null,"TOTALS FOR THIS SHEET",null,null,null,{"$f":"SUM(F9:F39)","v":53.45},{"$f":"SUM(G9:G39)","v":0.31},{"$f":"SUM(H9:H29)","v":0.1},{"$f":"SUM(I9:I39)","v":19.50707070707071}]
[null,"SUB-TOTALS",null,null,null,{"$f":"SUM(F40:H40)","v":53.860000000000007}]
[null,"TOTALS CARRIED TO GENERAL SUMMARY",null,null,null,{"$f":"ROUNDUP(F41,0)","v":54}]

{"sheet":"14-ROS","index":13,"n_rows":47,"n_cols":13,"rows_kept":47,"cut":false,"hidden":false,"merged":[[21,0,42,0],[44,1,44,4],[45,1,45,4],[45,5,45,7],[46,1,46,4],[46,5,46,7],[0,1,1,12],[2,1,7,1],[2,2,7,2],[2,3,5,4],[2,5,5,5],[2,6,5,6],[2,7,5,7],[2,8,5,8],[2,9,5,9],[2,10,5,10],[2,11,5,11],[2,12,7,12],[6,5,7,5],[6,6,7,6],[6,7,7,7],[6,8,7,8]]}
[null,"HERBICIDAL SPRAYING NONSELECTIVE VEGETATION CONTROL DATA FOR ROSS COUNTY"]
[]
[null,"COUNTY","ROUTE","SLM",null,"GUARDRAIL SPRAYED","CONCRETE DIVIDER SPRAYED","CURB SPRAYED","TOTAL TREATED",null,null,null,"COMMENTS"]
[]
[]
[]
[null,null,null,"FROM","TO","MILE","MILE","MILE","ACRES"]
[null,null,null,"SLM","SLM"]
[null,"ROS",23,0,22.2,16.14,1.5,null,{"$f":"(H9*5280*42/12)/43560+(F9*5280*40/12)/43560","v":6.5212121212121215},null,null,null,"PIKE C.L. TO PICKAWAY C.L. - INCLUDING RAMPS"]
[null,"ROS",28,0,17.3,2.75,null,null,1.1111111111111112,null,null,null,"HIGHLAND C.L. TO U.S. 50"]
[null,"ROS",35,0,20.69,9.18,0.55000000000000004,null,3.709090909090909,null,null,null,"FAYETTE C.L. TO U.S. 23 - INCLUDING RAMPS"]
[null,"ROS",35,22.67,36.979999999999997,16.78,0.52,null,6.7797979797979808,null,null,null,"U.S. 23 TO JACKSON C.L. - INCLUDING RAMPS"]
[null,"ROS",41,0,2.79,0.33,null,null,0.13333333333333333,null,null,null,"PIKE C.L. TO U.S. 50"]
[null,"ROS",41,3.79,15.49,2.06,null,null,0.83232323232323246,null,null,null,"BAINBRIDGE CORP. TO HIGHLAND C.L."]
[null,"ROS",50,0,4,1.6,null,null,0.64646464646464652,null,null,null,"HIGHLAND C.L. TO BAINBRIDGE CORP."]
[null,"ROS",50,5.01,20.07,5.03,null,null,2.0323232323232325,null,null,null,"BAINBRIDGE CORP. TO CHILLICOTHE CORP."]
[null,"ROS",50,20.32,21.56,0.17,null,null,6.8686868686868685E-2,null,null,null,"LEAVE CHILLICOTHE CORP. TO ENTER CHILLICOTHE CORP."]
[null,"ROS",50,25.56,37.68,4.0999999999999996,0.01,null,1.6565656565656561,null,null,null,"CHILLICOTHE CORP. TO VINTON C.L."]
[null,"ROS",104,8.6,11.23,2.33,0.11,null,0.94141414141414137,null,null,null,"U.S. 23 TO CHILLICOTHE CORP."]
[null,"ROS",104,14.4,25.74,1.82,0.05,null,0.73535353535353531,null,null,null,"CHILLIOTHE CORP. TO PICKAWAY C.L."]
[null,"ROS",138,0,16.829999999999998,1.89,0.03,null,0.76363636363636345,null,null,null,"HIGHLAND C.L. TO CLARKSBURG CORP."]
[null,"ROS",138,17.27,17.7,0.05,null,null,2.0202020202020204E-2,null,null,null,"CLARKSBURG CORP. TO PICKAWAY C.L."]
[null,"ROS",159,0.42,1.1399999999999999,1.1599999999999999,7.0000000000000007E-2,null,0.4686868686868686,null,null,null,"LEAVE CHILLICOTHE CORP. TO ENTER CHILLICOTHE CORP."]
[null,"ROS",159,2.57,10.93,1.2,null,null,0.48484848484848486,null,null,null,"CHILLICOTHE CORP. TO KINGSTON CORP."]
[null,"ROS",180,0,11.67,1.43,null,null,0.57777777777777772,null,null,null,"S.R. 159 TO ADELPHI CORP."]
[null,"ROS",207,0,3.39,1.85,7.0000000000000007E-2,null,0.74747474747474751,null,null,null,"S.R. 159 TO S.R. 104"]
[null,"ROS",207,3.9,14.41,1.36,null,null,0.54949494949494948,null,null,null,"S.R. 104 TO CLARKSBURG CORP."]
[null,"ROS",207,14.78,15.02,0,null,null,0,null,null,null,"CLARKSBURG CORP. TO PICKAWAY C.L."]
[null,"ROS",327,2.02,4.6100000000000003,7.0000000000000007E-2,null,null,2.8282828282828285E-2,null,null,null,"U.S. 50 TO VINTON C.L. "]
[null,"ROS",327,4.6100000000000003,5.61,0,null,null,0,null,null,null,"HOCKING C.L. TO HOCKING C.L."]
[null,"ROS",327,5.61,7.5,0.25,null,null,0.10101010101010101,null,null,null,"HOCKING C.L. TO ADELPHI CORP."]
[null,"ROS",372,0,0.68,0.47,null,null,0.1898989898989899,null,null,null,"U.S. 23 TO SCIOT0 TRAIL SP"]
[null,"ROS",772,0,15.72,4.16,null,null,1.6808080808080808,null,null,null,"PIKE C.L. TO CHILLICOTHE CORP."]
[]
[]
[]
[]
[]
[]
[]
[]
[]
[]
[]
[null,"TOTALS FOR THIS SHEET",null,null,null,{"$f":"SUM(F9:F36)","v":76.179999999999993},{"$f":"SUM(G9:G36)","v":2.9099999999999988},{"$f":"SUM(H9:H23)","v":0},{"$f":"SUM(I9:I36)","v":30.779797979797983}]
[null,"SUB-TOTAL",null,null,null,{"$f":"SUM(F45:H45)","v":79.089999999999989}]
[null,"TOTALS CARRIED TO GENERAL SUMMARY",null,null,null,{"$f":"ROUNDUP(F46,0)","v":80}]

{"sheet":"15-NO SPRAY","index":14,"n_rows":58,"n_cols":6,"rows_kept":58,"cut":false,"hidden":false,"merged":[[0,0,0,4],[1,2,1,3],[0,5,1,5]]}
["Herbicidal NO SPRAY areas",null,null,null,null,"Description"]
["County","Route","Section",null,"LT/RT"]
["Ada",41,0.47,0.56999999999999995,null,"No Spray Signs"]
["Ada",41,30.8,null,null,"Oscad Entrance (Small Area)"]
["Ada",52,3.8,4.0999999999999996,null,"Moyer's Vineyard"]
["Ada",52,4.9000000000000004,5.2,null,"No Spray Signs"]
["Ada",125,15.6,15.8,null,"No Spray Area"]
["Ada",125,18,18.260000000000002,null,"No Spray Signs"]
["Ada",136,9.9499999999999993,10.3,null,"Wildflower Area"]
["Ada",247,12.9,13.5,"RT","Organic Farm"]
["Ada",781,3.7,3.8,null,"No Spray Signs"]
["Bro",41,1.49,1.56,null,"No Spray Signs"]
["Bro",50,1,1.27,null,"Vinyard"]
["Bro",52,1.8,1.9,null,"No Spray Requested by property owner "]
["Bro",52,3.39,3.43,null,"No Spray Signs"]
["Bro",52,9.39,9.5500000000000007,null,"No Spray Signs"]
["Bro",68,37.700000000000003,38.18,null,"No Spray Signs"]
["Bro",125,0.2,0.3,null,"No Spray Requested by property owner "]
["Bro",221,5.5,"to Bridge",null,"No Spray Area"]
["Bro",251,3.8,"to County Line",null,"No Spray Area"]
["Law",7,14.9,15.5,"LT","Greenhouse"]
["Law",7,null,null,"LT","Village of Millersport - Orchard"]
["Law",7,16.600000000000001,null,"LT","Tobacco Bed"]
["Law",217,11.3,null,"RT","Tobacco Bed"]
["Law",217,12.6,12.9,"LT","Orchard"]
["Law",217,17.53,"(SR 7)","LT","Orchard"]
["Law",218,0.2,null,"LT & RT","Tobacco Bed"]
["Law",218,0.9,null,"RT","Tobacco Bed"]
["Law",218,1.7,null,"LT","Tobacco Bed"]
["Law",218,2.1,null,"LT","Tobacco Bed"]
["Law",378,6.3,null,"RT","Tobacco Bed"]
["Law",522,8.1,null,"RT","Tobacco Bed"]
["Law",775,6.9,null,null,"Greenhouse and Tobacco Bed"]
["Law",775,10.8,null,"LT","Tobacco Bed"]
["Law",775,11.1,null,"LT","Tobacco Bed"]
["Law",775,12.1,null,"LT","Tobacco Bed"]
["Law",775,13.7,null,"RT","Tobacco Bed"]
["Law",775,14.2,14.95,"LT","Tobacco Bed"]
["Law",775,18.3,null,"LT","Tobacco Bed"]
["Law",775,19.100000000000001,null,"LT","Tobacco Bed"]
["Pik",124,7.3,7.6,"LT & RT","Kincaid Fish Farm"]
["Pik",335,6.2,null,"RT","Vineyard"]
["Pik",772,4.5999999999999996,null,"RT","Grapevines"]
["Pik",772,4.75,null,null,"Fruit Trees and Berries"]
["Pik",772,5.14,null,null,"Fruit Trees and Berries"]
["Pik",772,7.6,null,"RT","Do Not Spray"]
["Ros",23,0.37,null,"RT","Shelley's Nursery"]
["Ros",28,null,"Lattaville","RT","Village of Lattaville - Grapevines"]
["Ros",28,10.9,null,"RT","Grapevines"]
["Ros",41,9.35,null,"LT","Vineyard"]
["Ros",50,20.8,null,"RT","Nursery and Greenhouse"]
["Ros",159,10.199999999999999,null,"RT","Greenhouse and Shrubs"]
["Ros",327,5.5,5.7,"RT","Do Not Spray"]
["Ros",207,1.02,null,"LT","Fruit Trees"]
["Ros",207,3.5,3.75,"LT & RT","Do Not Spray"]
["Ros",207,4.7,4.8,"RT","Do Not Spray"]
["Ros",772,null,"Address 13823","RT","Richard Senter Residence"]
["Ros",772,12.7,13.3,"LT & RT","Hirsch Fruit Farm"]

{"sheet":"16-GUARDRAIL AND SIGN POST ","index":15,"n_rows":0,"n_cols":0,"rows_kept":0,"cut":false,"hidden":false,"merged":[]}

{"sheet":"17-CURB AND CONCRETE BARRIER","index":16,"n_rows":0,"n_cols":0,"rows_kept":0,"cut":false,"hidden":false,"merged":[]}